bitfinex/quotes_BTCUSD_20230115
["timestamp","ask_amount","ask_price","bid_price","bid_amount"]
[1673754572515,1.29082589,20713.0,20712.0,0.02177872]
[1673754579328,1.43524,20713.0,20712.0,0.02177872]
[1673754579590,1.29082589,20713.0,20712.0,0.02177872]
[1673754579872,0.96976589,20713.0,20712.0,0.02177872]
[1673754580353,0.96976589,20713.0,20712.0,0.08376872]
[1673754580601,0.007,20713.0,20712.0,0.53545235]
[1673754583924,0.007,20713.0,20712.0,0.47346235]
[1673754585204,0.47247411,20713.0,20712.0,0.02177872]
[1673754586704,0.68909527,20713.0,20712.0,0.02177872]
[1673754586962,1.17188327,20713.0,20712.0,0.02177872]
[1673754587196,1.03055327,20713.0,20712.0,0.02177872]
[1673754587478,1.17188327,20713.0,20712.0,0.02177872]
[1673754587970,0.85082327,20713.0,20712.0,0.02177872]
[1673754588228,1.17209709,20713.0,20712.0,0.02177872]
[1673754588474,1.02746916,20713.0,20712.0,0.02177872]
[1673754588738,1.74723143,20713.0,20712.0,0.02177872]
[1673754589747,1.89164554,20713.0,20712.0,0.02177872]
[1673754590766,1.8920421,20713.0,20712.0,0.02177872]
[1673754592513,1.89198827,20713.0,20712.0,0.02177872]
[1673754593003,1.74784073,20713.0,20712.0,0.02177872]
[1673754593514,1.60281733,20713.0,20712.0,0.02177872]
[1673754594004,1.89200889,20713.0,20712.0,0.02177872]
[1673754594259,1.60281733,20713.0,20712.0,0.02168234]
[1673754596821,1.89194696,20713.0,20712.0,0.02168234]
[1673754597073,1.53091169,20713.0,20712.0,0.02168234]
[1673754597330,1.89194696,20713.0,20712.0,0.02168234]
[1673754597575,1.53091169,20713.0,20712.0,0.02168234]
[1673754598081,1.74777016,20713.0,20712.0,0.02168234]
[1673754598349,1.42671016,20713.0,20712.0,0.02168234]
[1673754598604,1.74777016,20713.0,20712.0,0.02168234]
[1673754598844,1.53091169,20713.0,20712.0,0.02168234]
[1673754599101,1.74779235,20713.0,20712.0,0.02168234]
[1673754599635,1.45866272,20713.0,20712.0,0.02168234]
[1673754599885,1.60324527,20713.0,20712.0,0.02168234]
[1673754600145,1.46191527,20713.0,20712.0,0.02168234]
[1673754600445,1.24503461,20713.0,20712.0,0.02168234]
[1673754600676,1.60324527,20713.0,20712.0,0.02168234]
[1673754600927,1.74779235,20713.0,20712.0,0.02168234]
[1673754601419,1.45866272,20713.0,20712.0,0.02108534]
[1673754601919,1.28220016,20713.0,20712.0,0.02108534]
[1673754602173,1.60326006,20713.0,20712.0,0.02108534]
[1673754602678,1.28220086,20713.0,20712.0,0.02108534]
[1673754602971,1.45866272,20713.0,20712.0,0.02108534]
[1673754603217,1.60329419,20713.0,20712.0,0.02108534]
[1673754603473,1.28223419,20713.0,20712.0,0.02108534]
[1673754604477,1.60329419,20713.0,20712.0,0.02108534]
[1673754604739,0.007,20713.0,20712.0,0.43613779]
[1673754604990,0.007,20713.0,20712.0,0.77476089]
[1673754605259,0.86019836,20716.0,20712.0,0.77476089]
[1673754605260,0.49881954,20716.0,20712.0,1.704196]
[1673754605512,0.49881954,20716.0,20713.0,0.0791]
[1673754605755,0.35418807,20716.0,20714.0,0.03489]
[1673754606018,0.36151213,20717.0,20713.0,0.0791]
[1673754606268,0.36151213,20717.0,20715.0,0.37677159]
[1673754606851,0.005,20716.0,20715.0,0.37677159]
[1673754607030,0.36151213,20717.0,20715.0,1.33913969]
[1673754607289,0.001,20717.0,20716.0,0.81208269]
[1673754607550,0.14463147,20721.0,20716.0,1.78601869]
[1673754607810,0.50318177,20722.0,20717.0,0.76728126]
[1673754608057,0.03280358,20722.0,20721.0,0.0792]
[1673754608565,0.03280358,20722.0,20721.0,0.55951175]
[1673754608824,0.03280358,20722.0,20721.0,0.48031175]
[1673754610950,0.05580358,20722.0,20721.0,0.004]
[1673754611204,0.96348729,20722.0,20721.0,0.004]
[1673754612786,1.28454729,20722.0,20721.0,0.004]
[1673754613662,1.22732837,20722.0,20721.0,0.004]
[1673754613905,0.85944158,20722.0,20721.0,0.004]
[1673754614424,1.25707475,20722.0,20721.0,0.004]
[1673754614935,1.25707475,20722.0,20721.0,0.06599]
[1673754615981,1.25707475,20722.0,20721.0,0.004]
[1673754620457,0.93601475,20722.0,20721.0,0.06599]
[1673754621476,0.93601475,20722.0,20721.0,0.004]
[1673754621727,1.25707475,20722.0,20721.0,0.004]
[1673754623226,0.85944158,20722.0,20721.0,0.004]
[1673754623471,1.42976753,20722.0,20721.0,0.004]
[1673754623724,1.33904158,20722.0,20721.0,0.004]
[1673754624225,1.48367305,20722.0,20721.0,0.004]
[1673754624502,1.31604158,20722.0,20716.0,0.39923509]
[1673754624794,1.13232934,20722.0,20720.0,0.37149734]
[1673754625003,0.94160339,20722.0,20720.0,0.37149734]
[1673754625252,0.38902539,20722.0,20720.0,0.37149734]
[1673754626254,0.38902539,20722.0,20721.0,0.06399]
[1673754626255,0.45902539,20722.0,20721.0,0.06399]
[1673754626503,0.38902539,20722.0,20721.0,0.14169]
[1673754626753,0.39502539,20722.0,20721.0,0.14169]
[1673754627039,0.38902539,20722.0,20721.0,0.14169]
[1673754627313,0.03880358,20722.0,20721.0,0.16269]
[1673754627794,0.03280358,20722.0,20721.0,0.14169]
[1673754628042,0.03880358,20722.0,20721.0,0.16269]
[1673754629560,0.03880358,20722.0,20721.0,0.1007]
[1673754630060,0.03880358,20722.0,20721.0,0.10060215]
[1673754632893,0.43916803,20722.0,20721.0,0.10060215]
[1673754634440,0.03880358,20722.0,20721.0,0.10060215]
[1673754635959,0.03880358,20722.0,20721.0,0.021]
[1673754637378,0.03880358,20722.0,20721.0,0.50796643]
[1673754639912,0.03880358,20722.0,20721.0,0.54282443]
[1673754640181,0.03880358,20722.0,20721.0,0.50796643]
[1673754640960,0.03880358,20722.0,20721.0,0.54282343]
[1673754641224,0.03880358,20722.0,20721.0,0.50796643]
[1673754641724,0.03380358,20722.0,20721.0,0.50796643]
[1673754642992,0.03380358,20722.0,20721.0,0.54282343]
[1673754644023,0.03380358,20722.0,20721.0,0.50796643]
[1673754644275,0.03380358,20722.0,20721.0,0.62252343]
[1673754645799,0.03380358,20722.0,20721.0,1.10512543]
[1673754646061,0.03380358,20722.0,20721.0,1.24925901]
[1673754647548,0.03380358,20722.0,20721.0,1.10512543]
[1673754647800,0.00880358,20722.0,20721.0,1.10512543]
[1673754648054,0.00880358,20722.0,20721.0,0.618159]
[1673754648299,0.00880358,20722.0,20721.0,1.10272265]
[1673754648550,0.00880358,20722.0,20721.0,0.76229258]
[1673754648806,0.01739561,20724.0,20722.0,0.46295776]
[1673754649859,0.16202708,20724.0,20722.0,0.46295776]
[1673754650377,0.01739561,20724.0,20722.0,0.46295776]
[1673754650632,0.03939561,20724.0,20722.0,0.46595776]
[1673754650884,0.18402708,20724.0,20722.0,0.46595776]
[1673754652167,0.03939561,20724.0,20722.0,0.46595776]
[1673754652725,0.03939561,20724.0,20723.0,0.39008775]
[1673754654012,0.01739561,20724.0,20723.0,0.39008775]
[1673754654282,0.08139561,20724.0,20723.0,0.42793675]
[1673754654528,0.08139561,20724.0,20723.0,0.39308775]
[1673754655037,0.08139561,20724.0,20723.0,0.117448]
[1673754655296,0.08139561,20724.0,20723.0,0.57287556]
[1673754656258,0.08139561,20724.0,20723.0,1.05543056]
[1673754658836,0.08139561,20724.0,20723.0,0.97583056]
[1673754659815,0.08139561,20724.0,20723.0,0.520403]
[1673754660321,0.08139561,20724.0,20723.0,0.600103]
[1673754661295,0.08139561,20724.0,20723.0,1.03739886]
[1673754661540,0.08139561,20724.0,20723.0,0.600103]
[1673754663142,0.08139561,20724.0,20723.0,1.07730469]
[1673754663387,0.05639561,20724.0,20723.0,1.07730469]
[1673754663896,0.05639561,20724.0,20723.0,2.50394746]
[1673754664159,0.05639561,20724.0,20723.0,2.99314339]
[1673754664660,0.01584235,20725.0,20724.0,0.27846448]
[1673754664919,0.01584235,20725.0,20724.0,1.13486617]
[1673754665179,0.01584235,20725.0,20724.0,2.17857836]
[1673754665451,0.01584235,20725.0,20724.0,1.87857836]
[1673754665964,0.01584235,20725.0,20724.0,2.58331278]
[1673754666234,0.01584235,20725.0,20724.0,3.51222516]
[1673754666490,0.01584235,20725.0,20724.0,3.60411728]
[1673754666765,0.01584235,20725.0,20724.0,3.5087647]
[1673754667007,0.01584235,20725.0,20724.0,2.63999069]
[1673754667265,0.01584235,20725.0,20724.0,1.82265913]
[1673754667524,0.01584235,20725.0,20724.0,1.34012713]
[1673754667788,0.2065683,20725.0,20724.0,0.31780748]
[1673754668113,0.37577793,20725.0,20724.0,0.28296448]
[1673754668304,0.45497793,20725.0,20724.0,0.09896448]
[1673754668517,1.25854693,20725.0,20724.0,0.09896448]
[1673754669073,1.25954693,20725.0,20724.0,0.09896448]
[1673754669330,1.25854693,20725.0,20724.0,0.09896448]
[1673754669593,1.26654693,20725.0,20724.0,0.10596448]
[1673754671363,0.34490235,20725.0,20724.0,0.47913243]
[1673754671582,0.50635135,20725.0,20724.0,0.47913243]
[1673754672819,0.02384235,20725.0,20724.0,0.47913243]
[1673754675101,0.48237462,20725.0,20724.0,0.10596448]
[1673754675619,1.32448347,20725.0,20724.0,0.10596448]
[1673754675874,1.55363178,20725.0,20724.0,0.10596448]
[1673754676135,1.56852348,20725.0,20724.0,0.10596448]
[1673754676401,1.42389201,20725.0,20724.0,0.10596448]
[1673754676671,1.64774662,20725.0,20724.0,0.10596448]
[1673754678009,2.03977302,20725.0,20724.0,0.10596448]
[1673754678537,1.64774662,20725.0,20724.0,0.10596448]
[1673754679557,2.05241526,20725.0,20724.0,0.10596448]
[1673754679802,1.93634192,20725.0,20724.0,0.10596448]
[1673754680048,1.64774662,20725.0,20724.0,0.10596448]
[1673754681563,1.28671135,20725.0,20724.0,0.10596448]
[1673754681829,1.74741621,20725.0,20724.0,0.10596448]
[1673754682335,1.38671135,20725.0,20724.0,0.10596448]
[1673754682592,1.74741556,20725.0,20724.0,0.10596448]
[1673754683457,1.93593741,20725.0,20724.0,0.10596448]
[1673754683616,2.04641013,20725.0,20724.0,0.10596448]
[1673754683867,2.40711434,20725.0,20724.0,0.10596448]
[1673754684135,1.93593741,20725.0,20724.0,0.10596448]
[1673754684386,1.64741556,20725.0,20724.0,0.10596448]
[1673754685399,1.74730669,20725.0,20724.0,0.10596448]
[1673754685980,1.96157844,20725.0,20724.0,0.10596448]
[1673754687228,1.6009831,20725.0,20724.0,0.10596448]
[1673754687467,1.6009831,20725.0,20715.0,0.37028936]
[1673754687468,2.64924632,20725.0,20715.0,0.37028936]
[1673754687727,0.0797,20716.0,20715.0,0.37028936]
[1673754687985,2.03963995,20716.0,20715.0,0.37028936]
[1673754688805,1.856914,20716.0,20715.0,0.00554541]
[1673754689052,2.33256998,20716.0,20715.0,0.00554541]
[1673754690132,2.32456998,20716.0,20715.0,0.00454541]
[1673754690383,2.34256998,20716.0,20715.0,0.00454541]
[1673754690632,1.85985198,20716.0,20715.0,0.00454541]
[1673754691433,1.84185198,20716.0,20715.0,0.00454541]
[1673754691943,1.85985198,20716.0,20715.0,0.00454541]
[1673754694224,1.384196,20716.0,20715.0,0.00454541]
[1673754694470,2.14631871,20716.0,20715.0,0.00454541]
[1673754694722,1.84482393,20716.0,20715.0,0.00454541]
[1673754695254,1.763896,20716.0,20715.0,0.00454541]
[1673754696287,2.16584225,20716.0,20715.0,0.00454541]
[1673754697085,1.763896,20716.0,20715.0,0.00454541]
[1673754697336,2.10729932,20716.0,20715.0,0.00454541]
[1673754699135,1.73813833,20716.0,20715.0,0.00454541]
[1673754699397,0.983436,20716.0,20715.0,0.51588121]
[1673754699647,0.018,20716.0,20715.0,0.51588121]
[1673754702895,0.018,20716.0,20715.0,0.06653541]
[1673754703177,0.018,20716.0,20715.0,1.0537104]
[1673754703178,1e-08,20716.0,20715.0,1.0537104]
[1673754703427,1e-08,20716.0,20715.0,0.95527729]
[1673754704267,0.49607029,20721.0,20715.0,0.58416041]
[1673754704516,0.007,20716.0,20715.0,0.96552179]
[1673754704767,0.007,20716.0,20715.0,0.60515441]
[1673754707045,0.007,20716.0,20715.0,1.06466608]
[1673754708316,0.007,20716.0,20715.0,0.58192508]
[1673754711951,0.007,20716.0,20715.0,0.58132508]
[1673754714153,0.06725,20716.0,20715.0,0.02494541]
[1673754714426,0.9248169,20716.0,20715.0,0.02494541]
[1673754717464,1.2458769,20716.0,20715.0,0.02494541]
[1673754718712,0.9248169,20716.0,20715.0,0.02494541]
[1673754720395,0.8645669,20716.0,20715.0,0.02494541]
[1673754720913,0.007,20716.0,20715.0,0.59277122]
[1673754721160,0.007,20716.0,20715.0,0.62765522]
[1673754721680,0.0068,20716.0,20715.0,0.62765522]
[1673754721947,0.0068,20716.0,20715.0,1.11039622]
[1673754722462,0.0068,20716.0,20715.0,0.62227041]
[1673754722715,0.0068,20716.0,20715.0,0.76594269]
[1673754723272,0.0068,20716.0,20715.0,1.25197496]
[1673754723530,0.0068,20716.0,20715.0,1.10830268]
[1673754725402,0.0068,20716.0,20715.0,0.62227041]
[1673754725701,0.0068,20716.0,20715.0,1.0249236]
[1673754727539,0.0068,20716.0,20715.0,0.02494541]
[1673754727783,0.49993032,20716.0,20715.0,0.02494541]
[1673754728032,0.52283497,20716.0,20715.0,0.02494541]
[1673754730088,0.02970465,20716.0,20715.0,0.02494541]
[1673754730339,0.02970465,20716.0,20715.0,0.40099606]
[1673754730865,0.02970465,20716.0,20715.0,0.43588006]
[1673754733154,0.02970465,20716.0,20715.0,0.40099606]
[1673754733913,0.02970465,20716.0,20715.0,0.43588006]
[1673754734135,0.02970465,20716.0,20715.0,0.40099606]
[1673754737669,0.02970465,20716.0,20715.0,0.02494541]
[1673754738917,0.51242265,20716.0,20715.0,0.02494541]
[1673754739941,0.51242265,20716.0,20715.0,0.38025061]
[1673754740197,0.02970465,20716.0,20715.0,0.41513461]
[1673754740460,0.02970465,20716.0,20715.0,0.55880689]
[1673754740710,1e-08,20716.0,20715.0,0.55880689]
[1673754741485,1e-08,20716.0,20715.0,0.77529454]
[1673754742002,1e-08,20716.0,20715.0,1.48811086]
[1673754742265,1e-08,20716.0,20715.0,0.77529454]
[1673754742516,1e-08,20716.0,20715.0,0.55880689]
[1673754743029,1e-08,20716.0,20715.0,1.13280873]
[1673754743283,1e-08,20716.0,20715.0,0.98913645]
[1673754743566,1e-08,20716.0,20715.0,2.72637662]
[1673754743800,1e-08,20716.0,20715.0,0.68680266]
[1673754744052,1e-08,20716.0,20715.0,0.90313194]
[1673754744871,1e-08,20716.0,20715.0,1.61594852]
[1673754745079,1e-08,20716.0,20715.0,0.90313194]
[1673754745594,1e-08,20716.0,20715.0,0.68680266]
[1673754746123,1e-08,20716.0,20715.0,0.05982941]
[1673754748619,1e-08,20716.0,20715.0,0.42039094]
[1673754748879,1e-08,20716.0,20715.0,1.13323238]
[1673754749633,1e-08,20716.0,20715.0,0.42039094]
[1673754749900,1e-08,20716.0,20715.0,0.20406166]
[1673754750944,1e-08,20716.0,20715.0,0.05982941]
[1673754752557,1e-08,20716.0,20715.0,0.20406166]
[1673754752789,1e-08,20716.0,20715.0,0.05982941]
[1673754753792,1e-08,20716.0,20715.0,0.20406166]
[1673754754051,1e-08,20716.0,20715.0,0.05982941]
[1673754756989,1e-08,20716.0,20715.0,0.20406166]
[1673754758016,1e-08,20716.0,20715.0,0.42039094]
[1673754758517,1e-08,20716.0,20715.0,1.13322231]
[1673754759040,1e-08,20716.0,20715.0,1.13341578]
[1673754759264,1e-08,20716.0,20715.0,2.24369483]
[1673754760020,1e-08,20716.0,20715.0,2.02736555]
[1673754761060,1e-08,20716.0,20715.0,2.38886046]
[1673754761319,1e-08,20716.0,20715.0,2.02736555]
[1673754761588,1e-08,20716.0,20715.0,2.38886046]
[1673754761837,0.3605814,20723.0,20717.0,5.999e-05]
[1673754762088,0.3605814,20723.0,20721.0,0.0797]
[1673754762089,0.14423256,20723.0,20721.0,0.0797]
[1673754762366,0.14423256,20723.0,20722.0,0.034858]
[1673754762619,0.7658591,20724.0,20722.0,0.034858]
[1673754762888,0.7658591,20724.0,20721.0,0.0797]
[1673754763408,0.54951026,20724.0,20721.0,0.0797]
[1673754763677,0.4052777,20724.0,20721.0,0.0797]
[1673754763937,0.36202007,20722.0,20721.0,0.1727]
[1673754764207,0.14423256,20724.0,20720.0,0.482623]
[1673754764208,0.55130735,20724.0,20720.0,0.98212461]
[1673754764434,0.93781347,20724.0,20721.0,0.5431895]
[1673754764695,0.74708752,20724.0,20721.0,0.5431895]
[1673754765236,0.53073868,20724.0,20721.0,0.5431895]
[1673754765507,0.53073868,20724.0,20721.0,0.4501895]
[1673754766197,0.53073868,20724.0,20721.0,0.5431895]
[1673754768006,0.38650612,20724.0,20722.0,0.48496942]
[1673754769256,0.38650612,20724.0,20722.0,0.57796942]
[1673754770007,0.29604884,20723.0,20722.0,0.093]
[1673754770258,2.17068396,20723.0,20722.0,0.093]
[1673754770504,2.39461652,20723.0,20722.0,0.093]
[1673754771260,0.1,20722.0,20717.0,0.35644206]
[1673754771509,0.0797,20720.0,20717.0,0.35644206]
[1673754771753,1.23569895,20720.0,20717.0,5.999e-05]
[1673754771999,0.49819653,20719.0,20717.0,5.999e-05]
[1673754772508,0.39819653,20719.0,20717.0,0.09205999]
[1673754772761,0.49819653,20719.0,20717.0,5.999e-05]
[1673754773011,0.39819653,20719.0,20717.0,5.999e-05]
[1673754773555,0.49819653,20719.0,20717.0,5.999e-05]
[1673754774314,0.40637689,20718.0,20717.0,0.09205999]
[1673754775073,0.42225219,20718.0,20717.0,0.09205999]
[1673754775341,0.0158753,20718.0,20717.0,0.09205999]
[1673754775861,0.0158753,20718.0,20717.0,0.06204999]
[1673754776121,0.0158753,20718.0,20717.0,0.15404999]
[1673754776639,1e-08,20718.0,20717.0,0.18892299]
[1673754776909,1e-08,20718.0,20717.0,0.18892499]
[1673754777910,1e-08,20718.0,20717.0,0.15404999]
[1673754778380,1e-08,20718.0,20717.0,0.18892499]
[1673754778957,1e-08,20718.0,20717.0,0.15404999]
[1673754780492,1e-08,20718.0,20717.0,0.18892499]
[1673754781021,1e-08,20718.0,20717.0,0.81591907]
[1673754783755,1e-08,20718.0,20717.0,1.74508912]
[1673754784741,1e-08,20718.0,20717.0,1.03236769]
[1673754784985,1e-08,20718.0,20717.0,2.04509535]
[1673754785235,1e-08,20718.0,20717.0,1.03236769]
[1673754785487,1e-08,20718.0,20717.0,1.74508964]
[1673754785727,1e-08,20718.0,20717.0,1.33236769]
[1673754786044,1e-08,20718.0,20717.0,1.74508873]
[1673754786546,1e-08,20718.0,20717.0,0.81591907]
[1673754786805,1e-08,20718.0,20717.0,1.03236769]
[1673754787301,1e-08,20718.0,20717.0,0.81591907]
[1673754789302,1e-08,20718.0,20717.0,0.67161999]
[1673754789552,1e-08,20718.0,20717.0,0.81591907]
[1673754790267,1e-08,20718.0,20717.0,0.67161999]
[1673754793121,1e-08,20718.0,20717.0,0.81591907]
[1673754793921,1e-08,20718.0,20717.0,0.67161999]
[1673754794439,1e-08,20718.0,20717.0,0.18892499]
[1673754795488,1e-08,20718.0,20717.0,0.33322407]
[1673754796495,1e-08,20718.0,20717.0,0.188865]
[1673754797301,1e-08,20718.0,20717.0,0.126875]
[1673754797525,1e-08,20718.0,20717.0,0.092]
[1673754798543,1e-08,20718.0,20715.0,0.00394541]
[1673754798796,0.67439796,20718.0,20717.0,0.085]
[1673754799047,0.67439796,20718.0,20715.0,0.00394541]
[1673754799048,0.48267201,20718.0,20715.0,0.00394541]
[1673754799323,0.48367201,20718.0,20717.0,0.086]
[1673754800122,0.80473201,20718.0,20717.0,0.086]
[1673754800377,1.26995877,20718.0,20717.0,0.086]
[1673754800632,1.41433022,20718.0,20717.0,0.086]
[1673754800886,1.6308874,20718.0,20717.0,0.086]
[1673754801400,1.48651595,20718.0,20717.0,0.08589081]
[1673754801916,1.63102585,20718.0,20717.0,0.08589081]
[1673754803960,1.24549909,20718.0,20717.0,0.08589081]
[1673754804220,1.71511169,20718.0,20717.0,0.08589081]
[1673754804481,2.83813812,20718.0,20717.0,8.1e-07]
[1673754804745,2.44780936,20718.0,20715.0,0.00394541]
[1673754805069,0.90843956,20716.0,20715.0,0.00394541]
[1673754805269,1.90656561,20716.0,20715.0,0.00394541]
[1673754805536,2.70357974,20716.0,20715.0,0.00394541]
[1673754805787,2.70357974,20716.0,20712.0,0.00143737]
[1673754805788,0.1,20715.0,20712.0,0.00143737]
[1673754806039,0.0797,20713.0,20712.0,0.00143737]
[1673754806289,0.562488,20713.0,20712.0,0.00143737]
[1673754806543,0.883548,20713.0,20712.0,0.00143737]
[1673754807834,0.570488,20713.0,20712.0,0.00143737]
[1673754808098,0.891548,20713.0,20712.0,0.00143737]
[1673754808358,1.2761942,20713.0,20712.0,0.00143737]
[1673754809888,0.9551342,20713.0,20712.0,0.00143737]
[1673754810165,1.2761942,20713.0,20712.0,0.00143737]
[1673754811222,1.2681942,20713.0,20712.0,0.00143737]
[1673754811551,1.2791942,20713.0,20712.0,0.00143737]
[1673754811728,1.00433492,20713.0,20712.0,0.00143737]
[1673754812226,0.894548,20713.0,20712.0,0.00143737]
[1673754812488,1.47839621,20713.0,20712.0,0.00143737]
[1673754812744,1.37839621,20713.0,20712.0,0.00143737]
[1673754812988,1.36739621,20713.0,20712.0,0.00143737]
[1673754813490,0.883548,20713.0,20712.0,0.00143737]
[1673754813736,1.67041911,20713.0,20712.0,0.00143737]
[1673754814243,1.76141911,20713.0,20712.0,0.00143737]
[1673754815032,1.27987354,20713.0,20712.0,0.00143737]
[1673754815567,1.09787354,20713.0,20712.0,0.00143737]
[1673754815815,1.58887354,20713.0,20712.0,0.00143737]
[1673754817336,1.18887354,20713.0,20712.0,0.00143737]
[1673754817592,1.58887354,20713.0,20712.0,0.00143737]
[1673754817861,1.28887354,20713.0,20712.0,0.00143737]
[1673754818093,1.58887354,20713.0,20712.0,0.00143737]
[1673754818342,1.28887354,20713.0,20712.0,0.00143737]
[1673754819545,1.99375152,20713.0,20712.0,0.00143737]
[1673754820329,1.51342631,20713.0,20712.0,0.00143737]
[1673754820587,0.65259374,20712.0,20711.0,0.00184463]
[1673754820835,1.39483474,20712.0,20711.0,0.00184463]
[1673754822321,1.37983474,20712.0,20711.0,0.00184463]
[1673754822826,0.906941,20712.0,20711.0,0.00184463]
[1673754823864,0.1,20711.0,20710.0,0.00389915]
[1673754824222,2.44138216,20711.0,20710.0,0.00389915]
[1673754824390,2.39459461,20711.0,20710.0,0.00389915]
[1673754824931,1.9901684,20711.0,20710.0,0.00389915]
[1673754825186,2.20803338,20711.0,20710.0,0.00389915]
[1673754825480,1.85913,20711.0,20710.0,0.00389915]
[1673754825734,0.1,20710.0,20709.0,0.00310764]
[1673754825985,1.41271395,20710.0,20709.0,0.00310764]
[1673754826240,1.58206626,20710.0,20709.0,0.00310764]
[1673754826503,1.88626626,20710.0,20709.0,0.00310764]
[1673754826798,2.03020466,20710.0,20709.0,0.00310764]
[1673754827072,2.50430683,20710.0,20709.0,0.00310764]
[1673754827335,2.86500473,20710.0,20709.0,0.00310764]
[1673754827588,2.50419534,20710.0,20709.0,0.00310764]
[1673754827843,0.1,20709.0,20708.0,0.00373285]
[1673754828111,1.17396018,20709.0,20708.0,0.00373285]
[1673754828387,2.54625655,20709.0,20708.0,0.00373285]
[1673754828631,2.54617434,20709.0,20708.0,0.00373285]
[1673754828888,2.23841112,20709.0,20708.0,0.00373285]
[1673754829404,1.938122,20709.0,20708.0,0.00373285]
[1673754830104,1.846122,20709.0,20708.0,0.00373285]
[1673754830367,1.938122,20709.0,20708.0,0.00373285]
[1673754830609,2.31730741,20709.0,20708.0,0.00373285]
[1673754830843,2.79879566,20709.0,20708.0,0.00373285]
[1673754831088,2.31730741,20709.0,20708.0,0.00373285]
[1673754831580,2.60793602,20709.0,20708.0,0.00373285]
[1673754831827,2.31730741,20709.0,20708.0,0.00373285]
[1673754832136,2.60786453,20709.0,20708.0,0.00373285]
[1673754832642,2.61980741,20709.0,20708.0,0.00373285]
[1673754835662,1.98041931,20709.0,20708.0,0.00373285]
[1673754835904,1.458722,20709.0,20708.0,0.06572285]
[1673754836397,1.458722,20709.0,20708.0,0.00373285]
[1673754837879,2.17991286,20709.0,20708.0,0.00373285]
[1673754838641,1.87991286,20709.0,20708.0,0.00373285]
[1673754839409,1.80001286,20709.0,20708.0,0.00373285]
[1673754840641,0.092,20709.0,20708.0,0.45591597]
[1673754840905,0.092,20709.0,20708.0,0.53511597]
[1673754841925,0.93700172,20712.0,20708.0,0.53511597]
[1673754842173,0.083,20709.0,20708.0,0.47213312]
[1673754842434,0.93700172,20712.0,20708.0,0.47113312]
[1673754842698,0.009,20709.0,20708.0,0.47913312]
[1673754842953,0.93700172,20712.0,20708.0,0.47113312]
[1673754843208,0.94600172,20712.0,20708.0,0.47913312]
[1673754843814,0.45036629,20711.0,20708.0,0.47913312]
[1673754844055,0.45036629,20711.0,20708.0,0.47413312]
[1673754844855,0.45036629,20711.0,20708.0,0.46613312]
[1673754845100,0.94121129,20711.0,20708.0,0.48213312]
[1673754845340,0.94121129,20711.0,20709.0,0.41537042]
[1673754846332,0.93321129,20711.0,20709.0,0.41537042]
[1673754846574,0.93321129,20711.0,20709.0,0.43137042]
[1673754846575,0.94021129,20711.0,20709.0,0.43137042]
[1673754846819,0.94021129,20711.0,20709.0,0.42637042]
[1673754847815,0.007,20711.0,20709.0,0.016]
[1673754848071,0.007,20711.0,20710.0,0.0797]
[1673754848316,0.40609406,20714.0,20710.0,0.57649276]
[1673754848554,0.40609406,20714.0,20711.0,0.0797]
[1673754848796,0.50194068,20713.0,20710.0,1.02404076]
[1673754849279,0.012,20711.0,20710.0,1.02704076]
[1673754849523,0.35646478,20714.0,20710.0,0.562158]
[1673754849789,0.012,20713.0,20711.0,0.39923801]
[1673754850519,0.012,20713.0,20712.0,0.0789]
[1673754850767,0.012,20713.0,20712.0,0.67611]
[1673754851275,0.43659558,20718.0,20712.0,1.07024084]
[1673754851511,0.43659558,20718.0,20715.0,0.0791]
[1673754852020,0.01347271,20720.0,20716.0,0.44498299]
[1673754852284,0.01347271,20720.0,20718.0,0.0797]
[1673754853030,0.08747271,20720.0,20718.0,0.0797]
[1673754853519,0.08747271,20720.0,20719.0,0.034873]
[1673754853762,0.01347271,20720.0,20719.0,0.034873]
[1673754854016,0.08747271,20720.0,20718.0,0.0817]
[1673754854252,0.08747271,20720.0,20718.0,0.0797]
[1673754854488,0.10047271,20720.0,20719.0,0.06499]
[1673754854787,0.01347271,20720.0,20719.0,0.06199]
[1673754855022,0.02047271,20720.0,20719.0,0.06199]
[1673754855273,0.01347271,20720.0,20719.0,0.06199]
[1673754855519,0.02647271,20720.0,20719.0,0.06499]
[1673754856532,1.1094722,20720.0,20719.0,0.003]
[1673754856781,1.23980625,20720.0,20719.0,0.003]
[1673754862153,1.51937351,20720.0,20719.0,0.003]
[1673754862603,1.59907351,20720.0,20719.0,0.003]
[1673754862848,1.61450625,20720.0,20719.0,0.003]
[1673754863342,1.31450625,20720.0,20719.0,0.003]
[1673754863588,1.30950625,20720.0,20719.0,0.003]
[1673754865345,1.60950625,20720.0,20719.0,0.003]
[1673754865589,1.30950625,20720.0,20719.0,0.003]
[1673754866342,1.60950625,20720.0,20719.0,0.003]
[1673754866591,1.19985771,20720.0,20719.0,0.003]
[1673754866871,1.31400554,20720.0,20719.0,0.003]
[1673754867118,1.61400554,20720.0,20719.0,0.003]
[1673754867875,0.89985771,20720.0,20719.0,0.003]
[1673754868127,1.19985771,20720.0,20719.0,0.003]
[1673754868612,1.29985771,20720.0,20719.0,0.003]
[1673754869633,1.37955771,20720.0,20719.0,0.003]
[1673754870386,1.3062785,20720.0,20719.0,0.003]
[1673754870636,1.3062785,20720.0,20719.0,0.06499]
[1673754870896,1.2932785,20720.0,20717.0,0.45072232]
[1673754871161,0.17973,20719.0,20717.0,0.45072232]
[1673754871397,0.965344,20718.0,20717.0,0.45072232]
[1673754872651,1.051344,20718.0,20717.0,0.45172232]
[1673754875431,1.051344,20718.0,20717.0,0.001]
[1673754875638,1.44633968,20718.0,20717.0,0.001]
[1673754876719,1.76739968,20718.0,20717.0,0.001]
[1673754877243,1.44633968,20718.0,20717.0,0.001]
[1673754882380,1.76739968,20718.0,20717.0,0.001]
[1673754883105,1.44633968,20718.0,20717.0,0.001]
[1673754883611,1.76739968,20718.0,20717.0,0.001]
[1673754884375,1.44633968,20718.0,20717.0,0.001]
[1673754885341,1.44633968,20718.0,20717.0,0.00093766]
[1673754885857,1.76739968,20718.0,20717.0,0.00093766]
[1673754886109,1.44633968,20718.0,20717.0,0.00093766]
[1673754886357,1.44633968,20718.0,20717.0,0.06292766]
[1673754887367,1.44625226,20718.0,20717.0,0.06292766]
[1673754889395,1.44625226,20718.0,20717.0,0.00093766]
[1673754889660,1.59007917,20718.0,20717.0,0.00093766]
[1673754891178,1.44625226,20718.0,20717.0,0.00093766]
[1673754893404,1.59007917,20718.0,20717.0,0.06292766]
[1673754893902,1.10740717,20718.0,20717.0,0.06292766]
[1673754894660,0.96358026,20718.0,20717.0,0.00093766]
[1673754895169,1.10740717,20718.0,20717.0,0.00093766]